fUSD/lending_fUSD_20250812
["ID","MTS","AMOUNT","RATE_DAILY","PERIOD"]
[378786802,1755015069033,-400.0,0.00041643,30]
[378786803,1755015069042,-400.0,0.00041643,30]
[378786804,1755015069051,-400.0,0.00041643,30]
[378786805,1755015069060,-400.0,0.00041643,30]
[378786806,1755015069070,-501.63,0.00041643,30]
[378786807,1755015069080,-400.0,0.00041643,30]
[378786808,1755015069089,-400.0,0.00041643,30]
[378786809,1755015069099,-400.0,0.00041643,30]
[378786810,1755015069109,-400.0,0.00041643,30]
[378786811,1755015069119,-400.0,0.00041643,30]
[378786812,1755015069128,-400.0,0.00041643,30]
[378786813,1755015069137,-400.0,0.00041643,30]
[378786814,1755015069147,-400.0,0.00041643,30]
[378786815,1755015069156,-400.0,0.00041643,30]
[378786816,1755015069165,-300.0,0.00041643,30]
[378786817,1755015069174,-400.0,0.00041643,30]
[378786818,1755015069184,-400.0,0.00041643,30]
[378786819,1755015069193,-400.0,0.00041643,30]
[378786820,1755015069202,-400.0,0.00041643,30]
[378786821,1755015069212,-420.86,0.00041643,30]
[378786822,1755015069223,-400.0,0.00041643,30]
[378786823,1755015069232,-400.0,0.00041643,30]
[378786824,1755015069242,-400.0,0.00041643,30]
[378786825,1755015069257,-400.0,0.00041643,30]
[378786826,1755015069267,-400.0,0.00041643,30]
[378786827,1755015069276,-400.0,0.00041643,30]
[378786828,1755015069285,-400.0,0.00041643,30]
[378786829,1755015069294,-400.0,0.00041643,30]
[378786830,1755015069303,-400.0,0.00041643,30]
[378786831,1755015069312,-400.0,0.00041643,30]
[378786832,1755015069321,-400.0,0.00041643,30]
[378786833,1755015069331,-402.46482635,0.00041643,30]
[378786834,1755015069340,-400.0,0.00041643,30]
[378786835,1755015069349,-400.0,0.00041643,30]
[378786836,1755015069358,-400.0,0.00041643,30]
[378786837,1755015069367,-400.0,0.00041643,30]
[378786838,1755015069377,-400.0,0.00041643,30]
[378786839,1755015069386,-400.0,0.00041643,30]
[378786840,1755015069396,-395.38039322,0.00041643,30]
[378786841,1755015069407,-400.0,0.00041643,30]
[378786842,1755015069416,-400.0,0.00041643,30]
[378786843,1755015069425,-400.0,0.00041643,30]
[378786844,1755015069435,-233.52,0.00041643,30]
[378786845,1755015069445,-514.06,0.00041643,30]
[378786846,1755015069456,-400.0,0.00041643,30]
[378786847,1755015069466,-400.0,0.00041643,30]
[378786848,1755015069475,-400.0,0.00041643,30]
[378786849,1755015069484,-400.0,0.00041643,30]
[378786850,1755015069494,-400.0,0.00041643,30]
[378786851,1755015069503,-514.04,0.00041643,30]
[378786852,1755015069512,-1222.28,0.00041643,30]
[378786853,1755015069522,-400.0,0.00041643,30]
[378786854,1755015069532,-400.0,0.00041643,30]
[378786855,1755015069541,-400.0,0.00041643,30]
[378786856,1755015069550,-400.0,0.00041643,30]
[378786857,1755015069560,-400.0,0.00041643,30]
[378786858,1755015069569,-400.0,0.00041643,30]
[378786859,1755015069580,-1141.31,0.00041643,30]
[378786860,1755015069590,-400.0,0.00041643,30]
[378786861,1755015069599,-400.0,0.00041643,30]
[378786862,1755015069608,-400.0,0.00041643,30]
[378786863,1755015069618,-400.0,0.00041643,30]
[378786864,1755015069627,-400.0,0.00041643,30]
[378786865,1755015069636,-400.0,0.00041643,30]
[378786866,1755015069645,-379.93416457,0.00041643,30]
[378786867,1755015069654,-400.0,0.00041643,30]
[378786868,1755015069664,-400.0,0.00041643,30]
[378786869,1755015069674,-400.0,0.00041643,30]
[378786870,1755015069683,-530.7430922,0.00041643,30]
[378786871,1755015069693,-400.0,0.00041643,30]
[378786872,1755015069702,-400.0,0.00041643,30]
[378786873,1755015069711,-400.0,0.00041643,30]
[378786874,1755015069720,-544.29,0.00041643,30]
[378786875,1755015069730,-400.0,0.00041643,30]
[378786876,1755015069740,-400.0,0.00041643,30]
[378786877,1755015069873,-400.0,0.00041643,30]
[378786878,1755015069882,-459.18,0.00041643,30]
[378786879,1755015069891,-400.0,0.00041643,30]
[378786880,1755015069900,-150.46,0.00041643,30]
[378786881,1755015069912,-400.0,0.00041643,30]
[378786882,1755015069922,-400.0,0.00041643,30]
[378786883,1755015069931,-400.0,0.00041643,30]
[378786884,1755015069942,-400.0,0.00041643,30]
[378786885,1755015069953,-400.0,0.00041643,30]
[378786886,1755015069965,-400.0,0.00041643,30]
[378786887,1755015069974,-400.0,0.00041643,30]
[378786888,1755015069984,-618.08,0.00041643,30]
[378786889,1755015069994,-400.0,0.00041643,30]
[378786890,1755015070004,-400.0,0.00041643,30]
[378786891,1755015070013,-400.0,0.00041643,30]
[378786892,1755015070023,-400.0,0.00041643,30]
[378786893,1755015070033,-400.0,0.00041643,30]
[378786894,1755015070042,-400.0,0.00041643,30]
[378786895,1755015070051,-400.0,0.00041643,30]
[378786896,1755015070060,-400.0,0.00041643,30]
[378786897,1755015070069,-400.0,0.00041643,30]
[378786898,1755015070081,-400.0,0.00041643,30]
[378786899,1755015070090,-716.97,0.00041643,30]
[378786900,1755015070100,-400.0,0.00041643,30]
[378786901,1755015070109,-21729.59965321,0.00041643,2]
[378786902,1755015070132,-58252.7670509,0.00041643,2]
[378786903,1755015070143,-1121.575004,0.00041643,2]
[378786904,1755015070155,-56594.98833649,0.00041643,2]
[378786905,1755015070164,-400.0,0.00041643,30]
[378786906,1755015070173,-612.54,0.00041643,30]
[378786907,1755015070182,-464.46363988,0.00041643,30]
[378786908,1755015070191,-400.0,0.00041643,30]
[378786909,1755015070200,-400.0,0.00041643,30]
[378786910,1755015070210,-400.0,0.00041643,30]
[378786911,1755015070219,-852.43,0.00041643,30]
[378786912,1755015070228,-400.0,0.00041643,30]
[378786913,1755015070237,-400.0,0.00041643,30]
[378786914,1755015070248,-400.0,0.00041643,30]
[378786915,1755015070257,-447.8261558,0.00041643,30]
[378786916,1755015070268,-400.0,0.00041643,30]
[378786917,1755015070277,-566.95,0.00041643,30]
[378786918,1755015070287,-400.0,0.00041643,30]
[378786919,1755015070296,-400.0,0.00041643,30]
[378786920,1755015070306,-400.0,0.00041643,30]
[378786921,1755015070315,-400.0,0.00041643,30]
[378786922,1755015070325,-400.0,0.00041643,30]
[378786923,1755015070334,-400.0,0.00041643,30]
[378786924,1755015070343,-400.0,0.00041643,30]
[378786925,1755015070352,-400.0,0.00041643,30]
[378786926,1755015070362,-552.75,0.00041643,30]
[378786927,1755015070372,-400.0,0.00041643,30]
[378786928,1755015070381,-400.0,0.00041643,30]
[378786929,1755015070390,-151.0,0.00041643,30]
[378786930,1755015070400,-400.0,0.00041643,30]
[378786931,1755015070410,-400.0,0.00041643,30]
[378786932,1755015070419,-400.0,0.00041643,30]
[378786933,1755015070429,-407.83,0.00041643,30]
[378786934,1755015070439,-400.0,0.00041643,30]
[378786935,1755015070448,-400.0,0.00041643,30]
[378786936,1755015070458,-400.0,0.00041643,30]
[378786937,1755015070467,-400.0,0.00041643,30]
[378786938,1755015070477,-400.0,0.00041643,30]
[378786939,1755015070486,-400.0,0.00041643,30]
[378786940,1755015070495,-152.239659,0.00041643,30]
[378786941,1755015070505,-514.54,0.00041643,30]
[378786942,1755015070516,-400.0,0.00041643,30]
[378786943,1755015070528,-400.0,0.00041643,30]
[378786944,1755015070539,-400.0,0.00041643,30]
[378786945,1755015070548,-400.0,0.00041643,30]
[378786946,1755015070559,-400.0,0.00041643,30]
[378786947,1755015070569,-400.0,0.00041643,30]
[378786948,1755015070580,-400.0,0.00041643,30]
[378786949,1755015070590,-420.85,0.00041643,30]
[378786950,1755015070600,-400.0,0.00041643,30]
[378786951,1755015070610,-151.0,0.00041643,30]
[378786952,1755015070619,-400.0,0.00041643,30]
[378786953,1755015070629,-400.0,0.00041643,30]
[378786954,1755015070639,-400.0,0.00041643,30]
[378786955,1755015070648,-400.0,0.00041643,30]
[378786956,1755015070657,-400.0,0.00041643,30]
[378786957,1755015070666,-400.0,0.00041643,30]
[378786958,1755015070676,-400.0,0.00041643,30]
[378786959,1755015070687,-400.0,0.00041643,30]
[378786960,1755015070696,-400.0,0.00041643,30]
[378786961,1755015070705,-400.0,0.00041643,30]
[378786962,1755015070714,-400.0,0.00041643,30]
[378786963,1755015070724,-400.0,0.00041643,30]
[378786964,1755015070733,-436.48,0.00041643,30]
[378786965,1755015070742,-400.0,0.00041643,30]
[378786966,1755015070751,-400.0,0.00041643,30]
[378786967,1755015070761,-400.0,0.00041643,30]
[378786968,1755015070770,-400.0,0.00041643,30]
[378786969,1755015070779,-400.0,0.00041643,30]
[378786970,1755015070789,-400.0,0.00041643,30]
[378786971,1755015070798,-400.0,0.00041643,30]
[378786972,1755015070807,-400.0,0.00041643,30]
[378786973,1755015070817,-400.0,0.00041643,30]
[378786974,1755015070827,-400.0,0.00041643,30]
[378786975,1755015070837,-400.0,0.00041643,30]
[378786976,1755015070847,-400.0,0.00041643,30]
[378786977,1755015070856,-400.0,0.00041643,30]
[378786978,1755015070866,-522.26629758,0.00041643,30]
[378786979,1755015070875,-400.0,0.00041643,30]
[378786980,1755015070885,-400.0,0.00041643,30]
[378786981,1755015070895,-400.0,0.00041643,30]
[378786982,1755015070904,-400.0,0.00041643,30]
[378786983,1755015070916,-400.0,0.00041643,30]
[378786984,1755015070926,-400.0,0.00041643,30]
[378786985,1755015070935,-650.85,0.00041643,30]
[378786986,1755015070945,-400.0,0.00041643,30]
[378786987,1755015070955,-400.0,0.00041643,30]
[378786988,1755015070964,-400.0,0.00041643,30]
[378786989,1755015070973,-400.0,0.00041643,30]
[378786990,1755015070983,-450.11,0.00041643,30]
[378786991,1755015070993,-585.54,0.00041643,30]
[378786992,1755015071002,-400.0,0.00041643,30]
[378786993,1755015071012,-400.0,0.00041643,30]
[378786994,1755015071021,-400.0,0.00041643,30]
[378786995,1755015071031,-400.0,0.00041643,30]
[378786996,1755015071040,-400.0,0.00041643,30]
[378786997,1755015071049,-617.85,0.00041643,30]
[378786998,1755015071058,-400.0,0.00041643,30]
[378786999,1755015071067,-400.0,0.00041643,30]
[378787000,1755015071078,-400.0,0.00041643,30]
[378787001,1755015071087,-400.0,0.00041643,30]
[378787002,1755015071096,-400.0,0.00041643,30]
[378787003,1755015071108,-400.0,0.00041643,30]
[378787004,1755015071117,-400.0,0.00041643,30]
[378787005,1755015071126,-400.0,0.00041643,30]
[378787006,1755015071135,-400.0,0.00041643,30]
[378787007,1755015071145,-400.0,0.00041643,30]
[378787008,1755015071154,-400.0,0.00041643,30]
[378787009,1755015071163,-260.61530776,0.00041643,30]
[378787010,1755015071172,-401.16,0.00041643,30]
[378787011,1755015071182,-400.0,0.00041643,30]
[378787012,1755015071191,-400.0,0.00041643,30]
[378787013,1755015071200,-709.28,0.00041643,30]
[378787014,1755015071210,-2214.154581,0.00041643,2]
[378787015,1755015071219,-400.0,0.00041643,30]
[378787016,1755015071229,-151.0,0.00041643,30]
[378787017,1755015071238,-878.83,0.00041643,30]
[378787018,1755015071255,-400.0,0.00041643,30]
[378787019,1755015071267,-400.0,0.00041643,30]
[378787020,1755015071276,-400.0,0.00041643,30]
[378787021,1755015071286,-400.0,0.00041643,30]
[378787022,1755015071295,-400.0,0.00041643,30]
[378787023,1755015071305,-400.0,0.00041643,30]
[378787024,1755015071315,-400.0,0.00041643,30]
[378787025,1755015071327,-400.0,0.00041643,30]
[378787026,1755015071337,-400.0,0.00041643,30]
[378787027,1755015071346,-400.0,0.00041643,30]
[378787028,1755015071356,-429.65,0.00041643,30]
[378787029,1755015071366,-400.0,0.00041643,30]
[378787030,1755015071376,-400.0,0.00041643,30]
[378787031,1755015071385,-400.0,0.00041643,30]
[378787032,1755015071395,-400.0,0.00041643,30]
[378787033,1755015071404,-151.0,0.00041643,30]
[378787034,1755015071415,-400.0,0.00041643,30]
[378787035,1755015071424,-400.0,0.00041643,30]
[378787036,1755015071433,-400.0,0.00041643,30]
[378787037,1755015071443,-536.86980062,0.00041643,30]
[378787038,1755015071452,-710.99,0.00041643,30]
[378787039,1755015071461,-400.0,0.00041643,30]
[378787040,1755015071470,-400.0,0.00041643,30]
[378787041,1755015071479,-400.0,0.00041643,30]
[378787042,1755015071489,-400.0,0.00041643,30]
[378787043,1755015071499,-400.0,0.00041643,30]
[378787044,1755015071509,-412.2,0.00041643,30]
[378787045,1755015071519,-400.0,0.00041643,30]
[378787046,1755015071528,-400.0,0.00041643,30]
[378787047,1755015071538,-400.0,0.00041643,30]
[378787048,1755015071547,-400.0,0.00041643,30]
[378787049,1755015071557,-400.0,0.00041643,30]
[378787050,1755015071566,-400.0,0.00041643,30]
[378787051,1755015071576,-563.51,0.00041643,30]
[378787052,1755015071586,-151.0,0.00041643,30]
[378787053,1755015071595,-400.0,0.00041643,30]
[378787054,1755015071605,-151.0,0.00041643,30]
[378787055,1755015071614,-2127.5532976,0.00041643,2]
[378787056,1755015071739,-939.37,0.00041643,30]
[378787057,1755015071749,-400.0,0.00041643,30]
[378787058,1755015071758,-633.37,0.00041643,30]
[378787059,1755015071767,-400.0,0.00041643,30]
[378787060,1755015071777,-400.0,0.00041643,30]
[378787061,1755015071787,-400.0,0.00041643,30]
[378787062,1755015071796,-400.0,0.00041643,30]
[378787063,1755015071805,-150.0,0.00041643,30]
[378787064,1755015071815,-400.0,0.00041643,30]
[378787065,1755015071824,-400.0,0.00041643,30]
[378787066,1755015071834,-400.0,0.00041643,30]
[378787067,1755015071843,-152.69890409,0.00041643,30]
[378787068,1755015071854,-400.0,0.00041643,30]
[378787069,1755015071864,-400.0,0.00041643,30]
[378787070,1755015071873,-572.8,0.00041643,30]
[378787071,1755015071883,-400.0,0.00041643,30]
[378787072,1755015071893,-400.0,0.00041643,30]
[378787073,1755015071904,-452.56,0.00041643,30]
[378787074,1755015071917,-400.0,0.00041643,30]
[378787075,1755015071927,-400.0,0.00041643,30]
[378787076,1755015071937,-400.0,0.00041643,30]
[378787077,1755015071947,-400.0,0.00041643,30]
[378787078,1755015071957,-400.0,0.00041643,30]
[378787079,1755015071967,-400.0,0.00041643,30]
[378787080,1755015071976,-400.0,0.00041643,30]
[378787081,1755015071986,-400.0,0.00041643,30]
[378787082,1755015071996,-625.77,0.00041643,30]
[378787083,1755015072005,-151.0,0.00041643,30]
[378787084,1755015072015,-505.24,0.00041643,30]
[378787085,1755015072024,-400.0,0.00041643,30]
[378787086,1755015072034,-400.0,0.00041643,30]
[378787087,1755015072043,-400.0,0.00041643,30]
[378787088,1755015072052,-400.0,0.00041643,30]
[378787089,1755015072062,-151.0,0.00041643,30]
[378787090,1755015072072,-400.0,0.00041643,30]
[378787091,1755015072083,-400.0,0.00041643,30]
[378787092,1755015072092,-400.0,0.00041643,30]
[378787093,1755015072102,-400.0,0.00041643,30]
[378787094,1755015072112,-400.0,0.00041643,30]
[378787095,1755015072121,-400.0,0.00041643,30]
[378787096,1755015072132,-400.0,0.00041643,30]
[378787097,1755015072141,-400.0,0.00041643,30]
[378787098,1755015072151,-517.243887,0.00041643,30]
[378787099,1755015072160,-400.0,0.00041643,30]
[378787100,1755015072170,-400.0,0.00041643,30]
[378787101,1755015072179,-403.49246567,0.00041643,30]
[378787102,1755015072188,-409.61,0.00041643,30]
[378787103,1755015072198,-400.0,0.00041643,30]
[378787104,1755015072207,-400.0,0.00041643,30]
[378787105,1755015072216,-151.0,0.00041643,30]
[378787106,1755015072225,-400.0,0.00041643,30]
[378787107,1755015072234,-486.59,0.00041643,30]
[378787108,1755015072243,-400.0,0.00041643,30]
[378787109,1755015072252,-400.0,0.00041643,30]
[378787110,1755015072262,-400.0,0.00041643,30]
[378787111,1755015072271,-400.0,0.00041643,30]
[378787112,1755015072280,-453.86,0.00041643,30]
[378787113,1755015072289,-400.0,0.00041643,30]
[378787114,1755015072298,-400.0,0.00041643,30]
[378787115,1755015072308,-400.0,0.00041643,30]
[378787116,1755015072317,-400.0,0.00041643,30]
[378787117,1755015072327,-400.0,0.00041643,30]
[378787118,1755015072336,-400.0,0.00041643,30]
[378787119,1755015072345,-454.93,0.00041643,30]
[378787120,1755015072355,-400.0,0.00041643,30]
[378787121,1755015072364,-400.0,0.00041643,30]
[378787122,1755015072374,-400.0,0.00041643,30]
[378787123,1755015072383,-400.0,0.00041643,30]
[378787124,1755015072392,-481.77,0.00041643,30]
[378787125,1755015072402,-400.0,0.00041643,30]
[378787126,1755015072411,-151.0,0.00041643,30]
[378787127,1755015072420,-400.0,0.00041643,30]
[378787128,1755015072430,-400.0,0.00041643,30]
[378787129,1755015072439,-400.0,0.00041643,30]
[378787130,1755015072448,-400.0,0.00041643,30]
[378787131,1755015072458,-400.0,0.00041643,30]
[378787132,1755015072469,-484.89,0.00041643,30]
[378787133,1755015072478,-536.59,0.00041643,30]
[378787134,1755015072487,-400.0,0.00041643,30]
[378787135,1755015072497,-400.0,0.00041643,30]
[378787136,1755015072506,-400.0,0.00041643,30]
[378787137,1755015072516,-400.0,0.00041643,30]
[378787138,1755015072531,-400.0,0.00041643,30]
[378787139,1755015072548,-400.0,0.00041643,30]
[378787140,1755015072566,-400.0,0.00041643,30]
[378787141,1755015072592,-400.0,0.00041643,30]
[378787142,1755015072608,-400.0,0.00041643,30]
[378787143,1755015072624,-400.0,0.00041643,30]
[378787144,1755015072641,-400.0,0.00041643,30]
[378787145,1755015072659,-400.0,0.00041643,30]
[378787146,1755015072678,-400.0,0.00041643,30]
[378787147,1755015072695,-400.0,0.00041643,30]
[378787148,1755015072713,-400.0,0.00041643,30]
[378787149,1755015072729,-400.0,0.00041643,30]
[378787150,1755015072743,-400.0,0.00041643,30]
[378787151,1755015072761,-459.32,0.00041643,30]
[378787152,1755015072774,-400.0,0.00041643,30]
[378787153,1755015072791,-246.93770497,0.00041643,30]
[378787154,1755015072803,-400.0,0.00041643,30]
[378787155,1755015072819,-400.0,0.00041643,30]
[378787156,1755015072833,-400.0,0.00041643,30]
[378787157,1755015072851,-606.16,0.00041643,30]
[378787158,1755015072866,-260.85931533,0.00041643,30]
[378787159,1755015072880,-400.0,0.00041643,30]
[378787160,1755015072894,-400.0,0.00041643,30]
[378787161,1755015072910,-400.0,0.00041643,30]
[378787162,1755015072926,-151.0,0.00041643,30]
[378787163,1755015072940,-490.02,0.00041643,30]
[378787164,1755015072955,-324.76174019,0.00041643,30]
[378787165,1755015073008,-75.23825981,0.00041643,30]
[378787166,1755015073022,-400.0,0.00041643,30]
[378787167,1755015073036,-400.0,0.00041643,30]
[378787168,1755015073051,-400.0,0.00041643,30]
[378787169,1755015073065,-400.0,0.00041643,30]
[378787170,1755015073080,-2044.3392134,0.00041643,2]
[378787171,1755015073095,-400.0,0.00041643,30]
[378787172,1755015073109,-68.77740952,0.00041643,30]
[378787173,1755015073127,-82.22259048,0.00041643,30]
[378787174,1755015073142,-400.0,0.00041643,30]
[378787175,1755015073157,-400.0,0.00041643,30]
[378787176,1755015073172,-515.91,0.00041643,30]
[378787177,1755015073188,-400.0,0.00041643,30]
[378787178,1755015073203,-465.24,0.00041643,30]
[378787179,1755015073217,-400.0,0.00041643,30]
[378787180,1755015073234,-105.63518562,0.00041643,30]
[378787183,1755015122493,300.0,0.00030137,120]
[378787184,1755015122975,2500.0,0.00030137,120]
[378787185,1755015123970,1000.0,0.00030137,120]
[378787189,1755015157873,206.54,0.00013699,2]
[378787191,1755015164703,3426.51,0.0002055,2]
[378787193,1755015185209,2935.69,0.00020298,2]
[378787332,1755015722474,740.0,0.0002728,120]
[378787366,1755015914768,32162.63928761,0.00037362,30]
[378787367,1755015916697,8653.36593209,0.0002,2]
[378787368,1755015920504,315.01341585,9e-05,2]
[378787373,1755015929447,343.32619317,0.00037362,30]
[378787374,1755015930497,41031.62065206,0.00021,2]
[378787375,1755015930526,50000.0,0.00021,2]
[378787376,1755015930550,50000.0,0.00021,2]
[378787377,1755015930574,50000.0,0.00021,2]
[378787378,1755015930599,39738.11,0.00021,2]
[378787379,1755015930623,15551.29868168,0.00021,2]
[378787383,1755015961833,246.55605527,0.00037362,90]
[378787384,1755015965074,687.22621249,0.00037362,30]
[378787385,1755015967819,187.64555229,0.00015,2]
[378787387,1755015976222,732.28965423,0.00037362,120]
[378787388,1755015980442,175.17083164,0.00037362,120]
[378787393,1755015987736,6001.14576809,0.0002,2]
[378787395,1755016055026,424.73077999,0.00037362,120]
[378787396,1755016059246,28259.90999794,0.00018,2]
[378787397,1755016059270,50000.0,0.00018,2]
[378787398,1755016059295,50000.0,0.00018,2]
[378787399,1755016059323,16533.79869789,0.00018,2]
[378787400,1755016059441,517.00834449,0.00037362,120]
[378787401,1755016067703,209.41773625,0.00037362,120]
[378787402,1755016071855,194.30352736,0.00037362,30]
[378787403,1755016072958,427.26829042,0.00037362,120]
[378787404,1755016081448,33466.20130211,0.00019,2]
[378787405,1755016081474,50000.0,0.00019,2]
[378787406,1755016081499,43685.06909749,0.00019,2]
[378787407,1755016081667,301.76295086,0.00037362,30]
[378787408,1755016089815,206.54,0.00013699,2]
[378787411,1755016115186,868.11011234,0.00037362,30]
[378787412,1755016116586,294.97583966,0.00037362,30]
[378787413,1755016118344,370.44213748,0.00037362,120]
[378787414,1755016127310,168.34959418,0.00037362,30]
[378787415,1755016127479,203.27010199,0.00037362,30]
[378787418,1755016203626,1000.0,0.0002189,3]
[378787424,1755016232158,-300.0,0.00019999,2]
[378787425,1755016232167,-300.0,0.00019999,2]
[378787426,1755016232177,-1200.0,0.00019999,2]
[378787427,1755016232186,-850.0,0.00019999,2]
[378787428,1755016232195,-511.55778047,0.0002,2]
[378787429,1755016232205,-3950.0,0.0002,2]
[378787430,1755016232214,-912.14691765,0.0002,2]
[378787431,1755016232224,-1316.17884551,0.0002,2]
[378787432,1755016232233,-8282.25870316,0.0002,2]
[378787433,1755016232242,-1000.0,0.00022443,3]
[378787434,1755016232252,-11928.77195323,0.000225,2]
[378787435,1755016232263,-22355.50000005,0.000225,2]
[378787436,1755016232278,-422.42562901,0.000225,2]
[378787437,1755016232288,-183.804371,0.00024,5]
[378787438,1755016232299,-664.06530526,0.00024,5]
[378787439,1755016232310,-4152.13822429,0.00024,5]
[378787440,1755016232321,-1000.0,0.00024626,3]
[378787441,1755016232331,-2500.0,0.00024626,2]
[378787442,1755016232340,-212.72434047,0.000248,2]
[378787443,1755016232349,-620.719,0.000249,2]
[378787444,1755016232360,-1000.0,0.000249,2]
[378787445,1755016232370,-667.592,0.000249,2]
[378787446,1755016232379,-4056.16500871,0.00028,60]
[378787447,1755016232388,-451.81749873,0.0002899,2]
[378787448,1755016232429,-34.21250127,0.0002899,2]
[378787449,1755016232439,-161.72015831,0.00028999,2]
[378787450,1755016232448,-402.388145,0.00028999,2]
[378787451,1755016232458,-1876.57969642,0.00029,2]
[378787452,1755016232469,-3489.486,0.00029,2]
[378787453,1755016232481,-41624.27997273,0.00029,2]
[378787454,1755016232503,-968.400009,0.00029,2]
[378787455,1755016232515,-2641.87062371,0.00029,2]
[378787456,1755016232529,-3406.12705557,0.00029,2]
[378787457,1755016232540,-1500.0,0.00029,2]
[378787458,1755016232552,-38101.44018898,0.00029,2]
[378787459,1755016232581,-128567.61535847,0.00029,2]
[378787464,1755016232808,-500.0,0.00019999,2]
[378787465,1755016232817,-500.0,0.00019999,2]
[378787466,1755016232827,-555.76822134,0.00019999,2]
[378787467,1755016232837,-344.10152012,0.00019999,2]
[378787468,1755016232846,-2.44155846,0.00027397,2]
[378787469,1755016232858,-532.63143362,0.00027397,2]
[378787470,1755016232867,-500.0,0.00027397,2]
[378787471,1755016232876,-250.9331516,0.00029,2]
[378787472,1755016232887,-847.87333955,0.00029,2]
[378787473,1755016232913,-6167.99508415,0.00029,2]
[378787474,1755016232923,-415.25276358,0.00029696,2]
[378787475,1755016232933,-720.26,0.00029815,2]
[378787476,1755016232942,-185.45,0.00030023,2]
[378787477,1755016232952,-600.0,0.00030445,2]
[378787478,1755016232961,-600.0,0.00030445,2]
[378787479,1755016232971,-5577.1,0.00030478,7]
[378787481,1755016232980,-150.0,0.00031,7]
[378787483,1755016232990,-13167.99,0.00031002,120]
[378787485,1755016233000,-185.45,0.00031149,2]
[378787486,1755016233009,-173.27,0.00031189,120]
[378787487,1755016233020,-175.17219344,0.000322,2]
[378787488,1755016233030,-185.45,0.00032275,2]
[378787489,1755016233041,-339.0,0.00032358,3]
[378787490,1755016233052,-516.0,0.00032363,2]
[378787491,1755016233062,-483.5843948,0.00033284,2]
[378787492,1755016233072,-185.45,0.00033401,2]
[378787494,1755016233082,-161.8,0.00033554,2]
[378787495,1755016233092,-5000.0,0.00034383,2]
[378787496,1755016233102,-54323.80236683,0.000345,2]
[378787503,1755016237978,-6010.14972516,0.000345,2]
[378787504,1755016237990,-1621.19036409,0.000345,2]
[378787505,1755016238034,-2477.46475509,0.000345,2]
[378787506,1755016238045,-2680.83712567,0.000345,2]
[378787507,1755016238089,-718.95082275,0.000345,2]
[378787508,1755016238098,-185.45,0.00034527,2]
[378787509,1755016238107,-962.93,0.00034718,2]
[378787510,1755016238117,-50.44407117,0.00035177,2]
[378787511,1755016238144,-130.60592883,0.00035177,2]
[378787512,1755016238153,-417.01208363,0.00035466,2]
[378787513,1755016238162,-666.0,0.00035724,3]
[378787514,1755016238171,-78953.72735578,0.00036,2]
[378787515,1755016238180,-212.72434046,0.0003611,2]